bitfinex/quotes_ETHUSD_20250706
["timestamp","ask_amount","ask_price","bid_price","bid_amount"]
[1751839595228,0.192,2600.8,2600.1,0.55]
[1751839595447,2.255,2600.6,2600.5,3.84541395]
[1751839595611,2.255,2600.8,2600.5,0.192]
[1751839596129,2.255,2600.8,2600.6,3.84525185]
[1751839597465,2.255,2600.8,2600.5,0.192]
[1751839597755,3.5478,2600.8,2600.3,0.192]
[1751839597913,14.05439121,2600.7,2600.1,3.84591588]
[1751839598116,0.6,2600.6,2600.2,0.192]
[1751839598345,14.24639121,2600.7,2600.2,0.192]
[1751839598732,3.84548676,2600.5,2600.2,0.192]
[1751839599434,10.4012,2600.7,2600.2,0.192]
[1751839599634,12.0513184,2600.7,2600.2,0.192]
[1751839600045,3.4913184,2600.7,2600.2,0.192]
[1751839600336,2.256,2600.6,2600.3,3.84563461]
[1751839600738,2.256,2600.6,2600.2,0.192]
[1751839601034,6.10133975,2600.6,2600.2,0.192]
[1751839601748,2.256,2600.6,2600.2,4.03785509]
[1751839602334,0.002,2600.6,2600.5,3.84541434]
[1751839602661,0.002,2600.6,2600.5,0.192]
[1751839603358,4.84189695,2600.6,2600.3,4.882]
[1751839603849,0.002,2600.6,2600.3,4.882]
[1751839604050,0.002,2600.6,2600.4,3.84554038]
[1751839604352,0.002,2600.6,2600.3,8.7276449]
[1751839604557,0.002,2600.6,2600.3,4.882]
[1751839604721,0.002,2600.6,2600.3,0.192]
[1751839604921,1.1024,2600.6,2600.3,0.192]
[1751839605121,0.002,2600.6,2600.3,0.192]
[1751839605317,2.254,2600.5,2600.4,3.84546649]
[1751839605649,2.254,2600.5,2600.3,0.192]
[1751839606778,6.09949529,2600.5,2600.0,3.87371503]
[1751839606952,2.254,2600.5,2600.1,4.03799819]
[1751839607134,2.254,2600.5,2600.1,0.192]
[1751839607339,3.84559461,2600.4,2600.1,0.192]
[1751839607560,3.84577158,2600.3,2600.1,0.192]
[1751839607880,3.84600592,2600.1,2600.0,0.0276334]
[1751839608097,15.06178851,2600.4,2600.0,0.0276334]
[1751839608376,2.254,2600.5,2600.2,0.55]
[1751839608542,2.256,2600.6,2600.4,11.60482983]
[1751839608742,2.256,2600.6,2600.5,3.84541434]
[1751839608965,2.256,2600.6,2600.4,7.75926761]
[1751839608966,2.256,2600.6,2600.3,0.192]
[1751839609158,2.256,2600.6,2600.3,4.03770569]
[1751839609969,3.84556222,2600.4,2600.0,0.0276334]
[1751839610137,1.6492,2600.5,2600.0,0.0276334]
[1751839610341,0.192,2600.3,2600.0,0.0276334]
[1751839610778,4.03771612,2600.3,2600.0,0.0276334]
[1751839612179,0.192,2600.3,2600.0,0.0276334]
[1751839612741,0.192,2600.3,2600.0,3.87371789]
[1751839613266,2.254,2600.2,2600.0,3.87371789]
[1751839613478,2.254,2600.2,2600.1,3.84600592]
[1751839613684,2.254,2600.2,2600.1,4.03800592]
[1751839614780,2.254,2600.2,2600.1,0.192]
[1751839614998,2.254,2600.2,2600.0,0.0276334]
[1751839615593,2.254,2600.2,2600.0,3.87378395]
[1751839615981,2.254,2600.2,2600.0,0.0276334]
[1751839616184,2.883158,2600.2,2600.0,0.0276334]
[1751839616788,0.192,2600.1,2600.0,0.0276334]
[1751839618705,0.192,2600.1,2600.0,3.87378724]
[1751839618868,2.254,2600.1,2600.0,3.87373768]
[1751839619192,2.254,2600.1,2600.0,3.87378724]
[1751839621591,2.254,2600.1,2600.0,5.46468724]
[1751839622500,2.254,2600.1,2600.0,5.46568724]
[1751839623694,0.192,2600.4,2600.3,3.84571011]
[1751839623896,2.245,2600.4,2600.3,11.60497772]
[1751839624099,2.245,2600.4,2600.3,11.79697772]
[1751839624796,2.245,2600.4,2600.3,7.95126761]
[1751839624995,3.84584005,2600.3,2600.0,0.0286334]
[1751839625196,0.192,2600.2,2600.0,3.87471201]
[1751839625509,0.192,2600.3,2600.0,3.87471201]
[1751839625699,0.002,2600.5,2600.2,3.84574465]
[1751839625993,0.002,2600.5,2600.1,3.84600592]
[1751839625994,2.245,2600.4,2600.3,3.8456939]
[1751839626179,2.36531558,2600.4,2600.1,0.192]
[1751839626378,0.12031558,2600.3,2600.1,0.192]
[1751839626573,2.245,2600.4,2600.2,3.84585801]
[1751839626799,2.245,2600.4,2600.1,0.192]
[1751839626800,0.12031528,2600.3,2600.1,0.192]
[1751839627304,3.96609742,2600.3,2600.0,0.0286334]
[1751839627599,0.12031528,2600.2,2600.1,3.84600592]
[1751839627793,0.12031528,2600.2,2600.0,3.87470946]
[1751839627972,0.12031528,2600.2,2600.0,0.0286334]
[1751839629592,0.192,2600.3,2600.0,3.87468419]
[1751839629799,0.12032111,2600.2,2600.1,3.84600502]
[1751839629989,0.192,2600.3,2600.1,3.84600502]
[1751839630184,2.245,2600.2,2600.1,3.84600502]
[1751839630596,0.002,2600.5,2600.4,3.84556222]
[1751839630796,0.12230983,2600.5,2600.4,11.60482983]
[1751839631105,0.12230983,2600.5,2600.4,7.95126761]
[1751839631489,0.12230983,2600.5,2600.4,7.75926761]
[1751839631703,0.12230983,2600.5,2600.3,0.192]
[1751839631906,0.002,2600.5,2600.3,0.192]
[1751839632110,0.002,2600.5,2600.1,11.79722392]
[1751839632405,0.002,2600.5,2600.2,3.84584543]
[1751839632615,0.12230983,2600.5,2600.2,3.84584543]
[1751839633301,0.12230983,2600.5,2600.3,3.8456897]
[1751839633613,0.12230983,2600.5,2600.4,4.03756222]
[1751839633614,0.002,2600.5,2600.4,4.03756222]
[1751839633913,11.487,2601.2,2600.5,2.1054]
[1751839634109,0.12028849,2601.1,2601.0,0.192]
[1751839634496,15.3314652,2601.2,2600.8,0.192]
[1751839634678,15.3314652,2601.2,2600.4,8.535]
[1751839634679,3.8451844,2600.7,2600.1,3.84600592]
[1751839634878,3.84482294,2600.9,2600.3,3.84567295]
[1751839635083,21.64494652,2601.1,2600.0,1.5840334]
[1751839635314,3.84534938,2600.6,2600.0,5.43006075]
[1751839635512,2.245,2600.5,2600.1,3.84599951]
[1751839636826,2.245,2600.6,2600.1,0.68401077]
[1751839637021,2.245,2600.6,2600.4,3.84542076]
[1751839637524,2.245,2600.6,2600.5,3.84541434]
[1751839637705,2.245,2600.6,2600.5,4.39541434]
[1751839638409,9.239,2601.3,2600.6,1.5055]
[1751839638615,12.36529257,2601.2,2600.9,3.84475098]
[1751839638796,2.36529257,2601.1,2600.8,7.75926761]
[1751839638994,0.12029257,2601.0,2600.8,11.60415011]
[1751839639228,0.12029257,2601.0,2600.9,3.84482294]
[1751839639433,0.12029257,2601.0,2600.8,11.6041581]
[1751839639723,10.0,2601.2,2600.8,11.6041581]
[1751839639724,9.239,2601.3,2601.2,3.84437951]
[1751839639896,0.0151209,2601.5,2601.3,1.6548]
[1751839640227,0.0151209,2601.5,2601.4,3.84408395]
[1751839640809,0.0151209,2601.5,2601.3,5.49896061]
[1751839641003,0.0151209,2601.5,2601.4,3.84408395]
[1751839642122,0.0151209,2601.5,2601.3,5.49903056]
[1751839642429,0.0151209,2601.5,2601.3,3.84423056]
[1751839643107,0.0151209,2601.5,2601.3,0.55]
[1751839643299,0.0151209,2601.5,2601.3,4.39421829]
[1751839643815,0.0151209,2601.5,2601.4,3.84408395]
[1751839644011,0.0151209,2601.5,2601.3,9.08416501]
[1751839644832,0.0151209,2601.5,2601.4,0.192]
[1751839645999,3.84411475,2601.4,2601.0,1.5378]
[1751839646315,3.84411475,2601.4,2601.1,0.192]
[1751839646497,3.84424162,2601.3,2601.1,0.192]
[1751839646700,3.84437951,2601.2,2600.8,4.69]
[1751839646905,4.03630007,2601.3,2600.8,8.72689548]
[1751839647115,3.84437983,2601.2,2600.8,4.882]
[1751839647951,0.192,2601.3,2600.8,0.192]
[1751839648107,1.6295,2601.0,2600.1,1.5757]
[1751839648307,0.192,2600.8,2600.2,11.79705717]
[1751839648533,2.245,2600.7,2600.3,3.84559072]
[1751839648834,3.84513693,2600.7,2600.2,11.79705502]
[1751839649015,2.245,2600.6,2600.2,11.79705502]
[1751839649216,2.245,2600.6,2600.2,7.75926761]
[1751839649438,2.245,2600.6,2600.4,0.192]
[1751839650624,6.09029491,2600.6,2600.2,7.75926761]
[1751839650825,2.245,2600.6,2600.3,0.192]
[1751839651019,3.84556222,2600.4,2600.0,0.0286334]
[1751839651354,3.84571722,2600.3,2600.0,0.2206334]
[1751839651520,3.84600592,2600.1,2600.0,0.0286334]
[1751839651714,4.03800592,2600.1,2600.0,0.0286334]
[1751839652166,14.03800592,2600.1,2600.0,0.0286334]
[1751839652935,22.55600592,2600.1,2600.0,0.0286334]
[1751839655061,24.79000592,2600.1,2600.0,0.0286334]
[1751839655372,14.03800592,2600.1,2600.0,0.0286334]
[1751839655553,24.78800592,2600.1,2600.0,0.0286334]
[1751839656241,1.6445,2600.3,2600.0,0.0286334]
[1751839656478,2.234,2600.1,2600.0,0.0286334]
[1751839657974,0.192,2600.3,2600.0,0.0286334]
[1751839658178,2.234,2600.4,2600.2,0.55]
[1751839658344,2.234,2601.1,2600.7,3.84510404]
[1751839658541,12.234,2601.1,2600.8,7.75926761]
[1751839659274,2.234,2601.1,2600.8,7.75926761]
[1751839659574,12.234,2601.1,2600.8,11.60416558]
[1751839659737,16.07860996,2601.1,2600.7,0.192]
[1751839659933,3.84484889,2600.9,2600.7,0.192]
[1751839660370,11.44819937,2601.0,2600.4,11.60475547]
[1751839660536,0.192,2601.0,2600.6,0.192]
[1751839661053,3.84483552,2600.9,2600.6,0.192]
[1751839661644,0.192,2601.0,2600.4,7.75926761]
[1751839661645,3.84471476,2601.0,2600.4,7.75926761]
[1751839661841,4.03682294,2600.9,2600.4,11.79682209]
[1751839662082,11.471,2601.2,2601.0,3.84458181]
[1751839662383,11.471,2601.2,2601.1,4.03652731]
[1751839662951,11.471,2601.2,2601.1,4.58652731]
[1751839663243,11.471,2601.2,2600.4,1.6489]
[1751839663244,3.84489996,2600.9,2600.4,1.6489]
[1751839663465,12.35404931,2600.8,2600.4,1.6489]
[1751839663982,8.509,2600.8,2600.4,5.4944583]
[1751839664276,8.509,2600.8,2600.4,1.6489]
[1751839664482,12.0372,2601.2,2600.5,0.55]
[1751839664697,20.743,2601.1,2600.8,7.75926761]
[1751839664838,10.0,2601.1,2600.8,7.75926761]
[1751839665177,10.742,2601.0,2600.8,7.75926761]
[1751839665780,10.742,2601.0,2600.5,8.30926761]
[1751839665965,10.742,2601.0,2600.7,3.84504853]
[1751839666157,10.742,2601.0,2600.5,8.30926761]
[1751839666342,14.58678013,2601.0,2600.5,12.15461201]
[1751839666546,3.84488505,2600.9,2600.5,0.55]
[1751839666760,3.84482294,2600.9,2600.5,0.55]
[1751839666974,10.742,2601.0,2600.5,4.615289]
[1751839667180,10.742,2601.0,2600.6,3.8451737]
[1751839667579,14.58668617,2601.0,2600.5,4.61525089]
[1751839667983,9.237,2601.2,2600.8,3.84497077]
[1751839668172,2.234,2601.1,2600.8,3.84490321]
[1751839668399,2.234,2601.1,2600.9,3.84481243]
[1751839668567,2.234,2601.1,2600.8,3.84489518]
[1751839668879,2.234,2601.1,2600.9,3.84477471]
[1751839669086,0.0171209,2601.5,2601.1,0.55]
[1751839669286,2.234,2601.4,2601.3,3.84415181]
[1751839669494,2.234,2601.4,2601.1,0.55]
[1751839669692,2.234,2601.4,2601.1,4.39441396]
[1751839670192,2.234,2601.4,2600.8,10.0]
[1751839670402,2.234,2601.4,2601.0,3.84467009]
[1751839670606,2.234,2601.4,2601.1,3.84444548]
[1751839670607,10.738,2601.4,2601.1,3.84444548]
[1751839671291,2.234,2601.3,2601.1,3.84444548]
[1751839671490,2.234,2601.2,2601.0,3.84459616]
[1751839672600,2.234,2601.2,2601.1,3.84452731]
[1751839673170,2.234,2601.2,2601.1,0.192]
[1751839673686,0.2091209,2601.5,2601.1,0.192]
[1751839673898,2.234,2601.4,2601.1,7.95126761]
[1751839674084,2.234,2601.4,2601.2,3.84435546]
[1751839674490,2.234,2601.4,2601.3,4.58623173]
[1751839674800,2.234,2601.4,2601.3,0.192]
[1751839675605,2.234,2601.4,2601.2,0.192]
[1751839676101,2.234,2601.4,2601.3,3.84423173]
[1751839676310,0.0171209,2601.5,2601.3,3.84423173]
[1751839676468,2.234,2601.4,2601.2,4.03630516]
[1751839676669,0.0171209,2601.5,2601.4,3.84408395]
[1751839676894,0.0171209,2601.5,2601.4,5.99098395]
[1751839677301,0.0171209,2601.5,2601.4,5.44098395]
[1751839677819,0.0171209,2601.5,2601.4,4.39408395]
[1751839679139,0.0171209,2601.5,2601.4,4.43252478]
[1751839679315,0.0171209,2601.5,2601.4,12.19179239]
[1751839679514,0.0171209,2601.5,2601.4,16.84335156]
[1751839684037,0.0171209,2601.5,2601.4,25.33335156]
[1751839684213,0.002,2601.6,2601.5,3.84393619]
[1751839684419,0.002,2601.6,2601.5,6.05637555]
[1751839684621,0.002,2601.6,2601.5,6.24837555]
[1751839686438,9.239,2602.0,2601.9,3.84334524]
[1751839686734,0.002,2602.3,2602.2,4.39290215]
[1751839686945,0.002,2602.3,2602.2,4.62333117]
[1751839689208,0.002,2602.3,2602.2,13.10733117]
[1751839689406,0.002,2602.3,2602.2,13.06890215]
[1751839689647,0.002,2602.3,2602.2,17.75890215]
[1751839694024,0.002,2602.3,2602.2,27.75890215]
[1751839696331,0.002,2602.3,2602.2,4.882]
[1751839696647,0.002,2602.3,2602.2,9.27490215]
[1751839696848,0.002,2602.3,2602.2,0.192]
[1751839697158,2.222,2602.3,2602.2,4.03490215]
[1751839697326,2.222,2602.3,2602.2,0.192]
[1751839697854,2.222,2602.3,2602.2,4.03490215]
[1751839698051,0.002,2602.3,2602.2,4.03490215]
[1751839698223,0.002,2602.3,2602.2,0.192]
[1751839699461,0.002,2602.3,2601.9,0.55]
[1751839699462,0.002,2602.3,2601.9,3.84326876]
[1751839699651,0.002,2602.3,2602.0,0.192]
[1751839699652,1.6657,2602.2,2602.0,0.192]
[1751839699856,3.84304984,2602.1,2601.8,0.192]
[1751839701179,1.6657,2602.2,2601.8,4.03540684]
[1751839701331,2.22,2602.0,2601.8,4.03540684]
[1751839701528,1.6657,2602.2,2601.8,4.03540684]
[1751839701764,2.22,2602.1,2601.9,3.84333194]
[1751839702068,2.22,2602.1,2601.8,0.192]
[1751839702278,6.85538011,2602.1,2601.8,0.192]
[1751839702635,3.01226417,2602.1,2601.8,0.192]
[1751839702982,6.8553291,2602.1,2601.8,0.192]
[1751839703177,3.84320177,2602.0,2601.8,0.192]
[1751839703746,6.85538896,2602.1,2601.8,0.192]
[1751839703946,3.84322235,2602.0,2601.8,0.192]
[1751839704489,2.22,2601.9,2601.8,0.192]
[1751839705871,4.63538125,2602.1,2601.8,0.192]
[1751839706257,1.6657,2602.2,2601.8,0.192]
[1751839706258,0.194,2602.3,2602.0,7.75926761]
[1751839706461,2.22,2602.2,2602.0,7.75926761]
[1751839707370,3.84308412,2602.1,2601.9,0.192]
[1751839707552,1.5427,2602.0,2601.9,0.192]
[1751839707750,5.38589754,2602.0,2601.9,0.192]
[1751839707974,3.84297127,2602.2,2601.9,0.192]
[1751839708174,2.22,2602.1,2601.9,0.192]
[1751839708890,6.06309341,2602.1,2601.9,0.192]
[1751839709289,3.84319754,2602.0,2601.9,0.192]
[1751839709691,0.192,2601.9,2601.1,22.30945138]
[1751839709995,3.8437976,2601.6,2601.3,0.192]
[1751839710199,2.22,2601.5,2601.3,0.192]
[1751839710358,0.192,2601.8,2601.3,0.192]
[1751839710561,3.84391281,2601.6,2601.3,0.192]
[1751839710766,1.6281,2601.5,2601.3,0.192]
[1751839711283,2.22,2601.4,2601.3,0.192]
[1751839712593,6.06408395,2601.4,2601.3,0.192]
[1751839713095,2.22,2601.4,2601.3,0.192]
[1751839713296,2.208,2601.4,2601.3,0.192]
[1751839714379,6.05208395,2601.4,2601.0,0.001]
[1751839714560,6.05208395,2601.4,2601.1,0.192]
[1751839714760,2.208,2601.4,2601.1,4.03645877]
[1751839714963,2.208,2601.4,2601.2,0.192]
[1751839715480,3.84400108,2601.5,2601.2,0.192]
[1751839715683,2.208,2601.3,2601.2,0.192]
[1751839716088,6.05223173,2601.3,2601.2,0.192]
[1751839716285,6.05223173,2601.3,2601.0,0.001]
[1751839716286,3.84452731,2601.1,2601.0,0.001]
[1751839717996,5.36552731,2601.1,2601.0,0.001]
[1751839720197,7.57352731,2601.1,2601.0,0.001]
[1751839720973,5.36552731,2601.1,2601.0,0.001]
[1751839721175,3.729,2601.1,2601.0,0.001]
[1751839721473,7.57352731,2601.1,2601.0,0.001]
[1751839722095,3.729,2601.1,2601.0,0.001]
[1751839722398,8.87184963,2601.1,2601.0,0.001]
[1751839725984,2.81932232,2601.1,2601.0,0.001]
[1751839726196,2.208,2601.1,2601.0,7.76026761]
[1751839726596,2.208,2601.3,2601.0,11.79691443]
[1751839726904,2.208,2601.4,2601.3,3.84423173]
[1751839727107,2.208,2601.4,2601.3,4.39423173]
[1751839727317,2.208,2601.5,2601.4,3.84395044]
[1751839727604,2.208,2601.5,2601.4,11.60321805]
[1751839727820,2.208,2601.5,2601.4,7.75926761]
[1751839728374,6.05193619,2601.5,2601.3,0.192]
[1751839728580,6.05193667,2601.5,2601.3,0.192]
[1751839729209,3.8443147,2601.3,2601.0,0.001]
[1751839729415,3.8443147,2601.3,2601.0,0.193]
[1751839729416,1.6603,2601.3,2601.0,0.193]
[1751839730103,3.84449625,2601.2,2601.0,0.193]
[1751839730310,1.6603,2601.3,2601.0,0.193]
[1751839731132,5.50453497,2601.3,2601.0,0.193]
[1751839731483,3.84439406,2601.2,2601.0,0.193]
[1751839731912,3.84439406,2601.2,2601.0,0.001]
[1751839732210,3.84452731,2601.1,2601.0,0.001]
[1751839735009,4.77929847,2601.2,2601.0,0.001]
[1751839735010,4.779348,2601.2,2601.0,0.001]
[1751839735210,2.208,2601.1,2601.0,3.84558172]
[1751839735412,2.208,2601.1,2601.0,0.001]
[1751839735615,2.208,2601.1,2601.0,0.193]
[1751839736289,8.635,2601.5,2601.0,0.193]
[1751839736290,4.03599299,2601.5,2601.0,4.03767512]
[1751839736485,2.208,2601.4,2601.0,4.03767512]
[1751839736685,3.84408622,2601.4,2601.0,4.03767512]
[1751839736902,3.84452731,2601.1,2601.0,0.193]
[1751839737122,3.84452731,2601.1,2601.0,0.001]
[1751839739714,1.6081,2601.2,2601.0,0.001]
[1751839739914,2.208,2601.1,2601.0,3.84567512]
[1751839740115,1.5957,2601.6,2601.1,4.03640753]
[1751839740116,2.208,2601.2,2601.1,4.03640753]
[1751839740287,2.208,2601.2,2601.1,13.97272041]
[1751839740611,2.208,2601.2,2601.1,13.93427514]
[1751839741001,8.63,2601.8,2601.4,3.8439458]
[1751839741318,2.208,2601.7,2601.4,3.8439458]
[1751839741515,2.208,2601.7,2601.4,4.0359458]
[1751839741715,2.208,2601.7,2601.4,0.192]
[1751839741887,2.208,2601.7,2601.5,3.84393485]
[1751839742215,2.208,2601.7,2601.4,4.0360188]
[1751839742607,2.208,2601.7,2601.4,0.192]
[1751839743029,3.84452731,2601.1,2601.0,0.001]
[1751839743321,3.84452731,2601.1,2600.1,7.88]
[1751839743322,3.84526647,2600.6,2599.9,0.001]
[1751839743623,33.13316647,2600.6,2600.5,1e-08]
[1751839743785,33.51769312,2600.6,2600.5,1e-08]
[1751839744787,35.71169312,2600.6,2600.5,1e-08]
[1751839745191,23.43242665,2600.6,2600.5,1e-08]
[1751839745502,38.55616647,2600.6,2600.5,1e-08]
[1751839746135,27.92816647,2600.6,2600.5,1e-08]
[1751839746296,38.55716647,2600.6,2600.5,1e-08]
[1751839746498,35.32716647,2600.6,2600.5,1e-08]
[1751839747724,24.69816647,2600.6,2600.5,1e-08]
[1751839747891,38.18049641,2600.6,2600.5,1e-08]
[1751839748093,27.55249641,2600.6,2600.5,1e-08]
[1751839748297,38.17949641,2600.6,2600.5,1e-08]
[1751839748927,29.74749641,2600.6,2600.5,1e-08]
[1751839749128,38.17949641,2600.6,2600.5,1e-08]
[1751839750894,0.3837463,2601.5,2600.5,1e-08]
[1751839751094,3.84470584,2601.0,2600.5,7.75926762]
[1751839751319,1.6184,2601.3,2600.5,1e-08]
[1751839751635,3.84497366,2600.8,2600.5,1e-08]
[1751839751805,2.195,2600.7,2600.5,1e-08]
[1751839752331,2.195,2600.7,2600.6,3.84526647]
[1751839752500,2.195,2600.7,2600.5,1e-08]
[1751839752937,6.04012961,2600.7,2600.5,1e-08]
[1751839753143,1.60876516,2601.2,2600.6,9.39276761]
[1751839753318,2.195,2600.8,2600.6,9.39276761]
[1751839753514,2.195,2600.8,2600.7,3.84509235]
[1751839753900,2.195,2600.8,2600.7,4.39509235]
[1751839754443,2.195,2601.0,2600.8,1.6335]
[1751839754619,2.195,2601.0,2600.9,3.84482294]
[1751839755619,2.195,2601.0,2600.8,1.6335]
[1751839755826,2.195,2601.0,2600.8,5.47840001]
[1751839756030,2.4145,2601.0,2600.5,1.63350001]
[1751839756248,7.92233021,2601.0,2600.5,1e-08]
[1751839756452,12.26982294,2600.9,2600.5,1e-08]
[1751839756610,3.84526647,2600.6,2600.5,1e-08]
[1751839756810,3.84497077,2600.8,2600.5,1e-08]
[1751839757152,5.47972785,2600.8,2600.5,1e-08]
[1751839757527,5.47979739,2600.8,2600.5,1e-08]
[1751839757840,2.195,2600.7,2600.5,1e-08]
[1751839758019,2.195,2600.6,2600.5,1.52570001]
[1751839759107,2.195,2600.6,2600.5,1e-08]
[1751839760430,8.16367114,2600.6,2600.5,0.00100001]
[1751839760757,2.195,2600.6,2600.5,0.00100001]
[1751839761938,13.84600592,2600.1,2599.9,0.001]
[1751839762106,33.02540592,2600.1,2599.9,0.001]
[1751839762304,33.02540592,2600.1,2600.0,1e-08]
[1751839762538,36.71253413,2600.1,2600.0,1e-08]
[1751839762714,38.90653413,2600.1,2600.0,1e-08]
[1751839763037,28.29153413,2600.1,2600.0,1e-08]
[1751839763357,38.90653413,2600.1,2600.0,1e-08]
[1751839764013,28.29153413,2600.1,2600.0,1e-08]
[1751839764210,38.90753413,2600.1,2600.0,1e-08]
[1751839767747,42.13753413,2600.1,2600.0,1e-08]
[1751839768736,42.13753413,2600.1,2599.5,0.0427543]
[1751839768737,15.40044565,2599.6,2599.5,0.0427543]
[1751839768923,23.81844565,2599.6,2599.5,0.0427543]
[1751839770352,23.81844565,2599.6,2599.5,1e-08]
[1751839770548,24.16589391,2599.6,2599.5,1e-08]
[1751839770943,24.1659138,2599.6,2599.5,1e-08]
[1751839771252,26.96716686,2599.6,2599.5,1e-08]
[1751839771451,18.20169871,2599.6,2599.5,1e-08]
[1751839771654,0.192,2599.6,2599.5,1e-08]
[1751839771856,2.196,2599.6,2599.5,1e-08]
[1751839772856,2.196,2599.6,2599.5,3.84689364]
[1751839773036,2.196,2599.6,2599.5,0.19200001]
[1751839773378,2.196,2599.6,2599.5,4.03889364]
[1751839773525,2.196,2599.6,2599.5,4.72290441]
[1751839773857,2.196,2599.6,2599.5,5.62649364]
[1751839773858,2.19145246,2599.6,2599.5,5.62649364]
[1751839774971,0.192,2600.1,2599.5,6.17649364]
[1751839775151,2.185,2600.0,2599.9,3.84617357]
[1751839775323,2.185,2600.0,2599.9,4.03817357]
[1751839775518,9.243,2600.2,2600.1,3.84600592]
[1751839775758,11.428,2600.2,2600.1,3.84600592]
[1751839775996,0.002,2600.8,2600.7,5.98271862]
[1751839776128,0.002,2600.8,2600.7,11.82354155]
[1751839776487,0.002,2600.8,2600.7,5.43271862]
[1751839778356,0.002,2600.8,2600.7,1.5876]
[1751839778558,0.002,2600.8,2600.6,0.55]
[1751839779856,0.002,2600.8,2600.4,1.5936]
[1751839780028,2.27475828,2600.8,2600.0,7.39597175]
[1751839780230,3.84524551,2600.7,2600.1,0.55]
[1751839780430,14.53076842,2600.8,2600.0,1.5936]
[1751839781061,3.84553588,2600.5,2600.0,1.5936]
[1751839781258,10.68575828,2600.8,2600.0,1.5936]
[1751839781259,3.84557387,2600.4,2600.0,1.5936]
[1751839781462,6.02972157,2600.3,2599.7,1.6635]
[1751839781665,3.84585801,2600.2,2599.7,1.6635]
[1751839782348,3.84639764,2599.9,2599.4,1.6645]
[1751839782550,3.84639196,2599.9,2599.4,5.51151318]
[1751839782758,3.84639196,2599.9,2599.4,1.6645]
[1751839783160,1.76907333,2599.9,2599.5,0.001]
[1751839783366,3.84653526,2599.8,2599.5,0.001]
[1751839783569,2.184,2599.7,2599.5,0.001]
[1751839784241,2.184,2599.7,2599.5,3.84787316]
[1751839784441,2.184,2599.7,2599.5,0.001]
[1751839785786,2.78703762,2599.7,2599.5,0.001]
[1751839786077,2.184,2599.7,2599.5,0.001]
[1751839786481,2.184,2599.7,2599.5,3.84789063]
[1751839786644,0.192,2599.8,2599.5,3.84789063]
[1751839786843,2.184,2599.7,2599.5,3.84789063]
[1751839787138,12.44502013,2600.1,2599.6,5.6857198]
[1751839787368,2.184,2600.0,2599.6,1.8391]
[1751839788166,6.03015536,2600.0,2599.6,1.8391]
[1751839788364,6.03022947,2600.0,2599.5,0.001]
[1751839788558,3.84646424,2599.8,2599.5,0.001]
[1751839788752,0.192,2599.9,2599.5,0.001]
[1751839789170,0.192,2599.9,2599.6,3.84674565]
[1751839789376,2.184,2600.0,2599.7,3.84656436]
[1751839789596,1.82107574,2600.1,2599.7,3.84656436]
[1751839789748,2.185,2599.9,2599.7,3.84652082]
[1751839789946,2.185,2599.9,2599.6,4.03867178]
[1751839790272,2.185,2599.9,2599.7,3.84656006]
[1751839790876,2.185,2599.9,2599.6,0.192]
[1751839791484,2.185,2599.9,2599.7,3.84659459]
[1751839791652,2.185,2599.9,2599.6,4.03867249]
[1751839791854,2.185,2599.9,2599.6,0.192]
[1751839792163,13.8117341,2599.8,2599.5,0.001]
[1751839792368,9.9652,2599.8,2599.5,0.001]
[1751839792562,2.185,2599.7,2599.5,0.001]
[1751839794879,9.434,2599.9,2599.5,0.001]
[1751839795196,10.589,2599.8,2599.6,3.84674565]
[1751839795383,12.5913,2599.8,2599.5,0.001]
[1751839797194,16.43775561,2599.8,2599.5,0.001]
[1751839797482,12.5913,2599.8,2599.5,0.001]
[1751839797692,12.5913,2599.8,2599.5,3.84782454]
[1751839798891,12.5913,2599.8,2599.6,3.84674393]
[1751839799062,12.5913,2599.8,2599.5,0.001]
[1751839799063,2.0023,2599.8,2599.5,0.001]
[1751839799272,2.185,2599.7,2599.6,3.84664313]
[1751839799660,2.185,2599.7,2599.5,4.03981622]
[1751839800467,2.185,2599.7,2599.5,0.193]
[1751839800793,4.1677,2599.7,2599.5,0.001]
[1751839800994,3.84674565,2599.6,2599.5,0.001]
[1751839801294,5.38454565,2599.6,2599.5,0.001]
[1751839803995,2.176,2599.6,2599.5,3.84774605]
[1751839804195,2.176,2599.6,2599.5,0.001]
[1751839805193,2.176,2599.6,2599.5,3.84789363]
[1751839805492,2.176,2599.6,2599.5,0.001]
[1751839805695,2.176,2599.6,2599.5,3.84789363]
[1751839806602,9.242,2599.9,2599.7,3.84659768]
[1751839806803,2.176,2599.8,2599.7,3.84659768]
[1751839807008,0.192,2600.0,2599.5,0.001]
[1751839807303,2.176,2600.0,2599.8,3.84635112]
[1751839807504,2.176,2600.0,2599.9,0.192]
[1751839808392,2.176,2600.0,2599.9,4.03830178]
[1751839808599,2.176,2600.0,2599.9,0.192]
[1751839810079,2.176,2600.0,2599.9,4.03830178]
[1751839810278,2.176,2600.0,2599.9,4.72231255]
[1751839810478,2.176,2600.0,2599.9,4.03830178]
[1751839812522,2.176,2600.0,2599.9,0.192]
[1751839812818,2.176,2600.0,2599.7,4.69]
[1751839813026,2.176,2600.0,2599.7,8.72852069]
[1751839813372,2.176,2600.0,2599.7,4.882]
[1751839813603,6.02216564,2600.0,2599.7,4.882]
[1751839813805,5.48692413,2599.9,2599.7,0.192]
[1751839814002,1.6406,2599.9,2599.7,0.192]
[1751839814225,3.84644972,2599.8,2599.5,0.001]